Cogmind - Beta 13 @@@ ROGUE MODE // 2024.03.21 @ 00:04:34 Player: Sloweel Result: Destroyed by C-57 Dissector with Dual-blade Saw Performance ------------- Evolutions (8) 4000 Regions Visited (16) 3200 Robots Destroyed (166) 830 Value Destroyed (6261) 6261 Prototype IDs (8) 160 Alien Tech Used (0) 0 Bonus (26) 26 TOTAL SCORE: 14477 Bonus ------- Follower Combat Kills 35 Friendly Fire -9 Cogmind --------- Core Integrity 0/1450 Matter 274/300 Energy 100/100 System Corruption 11% Temperature Cool (0) Movement Core (50) Location -2/Research Parts ------- > --- POWER (2) -------- (None) > --- PROPULSION (7) --- (None) > --- UTILITY (11) ----- Experimental Signal Interpreter Graphene Brace System Shield > --- WEAPON (3) ------- (None) > --- INVENTORY (5) ---- Improved Transmission Jammer Gamma Rifle Improved KE Penetrator Heavy Rocket Launcher Peak State ------------ > --- POWER ------------ Light Particle Reactor Compact Particle Reactor > --- PROPULSION ------- Heavy Treads Carbon-fiber Leg Improved Carbon-fiber Leg Flexi-carbon Leg Flexi-carbon Leg Flexi-carbon Leg > --- UTILITY ---------- Advanced Cooling System Medium Storage Unit Improved Signal Interpreter Improved Kinecellerator Advanced Reaction Control System Hardened Heavy Armor Plating Improved Focal Shield Advanced Shield Generator > --- WEAPON ----------- Improved KE Penetrator Improved KE Penetrator Railgun > --- INVENTORY -------- Cold Fusion Reactor Advanced Heat Sink Point Defense Array System Shield Gamma Rifle Advanced Plasma Cannon Advanced Plasma Cannon KE Penetrator Heavy Rocket Launcher Makeshift Axe [Rating: 120] Favorites ----------- Power Micro Nuclear Core Engine Heavy Ion Engine Power Core Micro Nuclear Core Reactor Cold Fusion Reactor Propulsion Armored Wheel Treads Medium Treads Leg Aluminum Leg Wheel Armored Wheel Hover Unit Combat Linear Gravjet Flight Unit Q-thruster Utility Improved Signal Interpreter Device Improved Sensor Array Storage Medium Storage Unit Processor Improved Signal Interpreter Hackware System Shield Protection Medium Reactive Plating Weapon Gauss Cannon Energy Gun Spread Laser Energy Cannon Cooled Particle Cannon Ballistic Gun Improved KE Penetrator Ballistic Cannon Gauss Cannon Launcher Mini Grenade Launcher Slashing Weapon Makeshift Axe Build | -11 -10 -10 -9 -8 -7 -7 -7 -7 -7 -6 -6 -6 -5 -4 -3 -2 ------- Run | Yrd Mat Min Mat Mat Fac Was Fac Low Low Fac Low Low Fac Fac Res Res Slots Evolved 16 | . . . 2 2 2 . . . . 2 . . 2 2 2 2 Power 1 | . . . . . 1 . . . . . . . . . . . Propulsion 5 | . . . 1 1 . . . . . 1 . . 1 . 1 . Utility 9 | . . . 1 1 1 . . . . 1 . . 1 1 1 2 Weapon 1 | . . . . . . . . . . . . . . 1 . . Parts Attached 206 | 7 21 7 12 13 23 1 . 18 2 29 4 . 10 8 44 7 Power 23 | 1 4 . 2 . 6 . . 1 . 5 . . 1 . 3 . Engine 12 | 1 4 . 2 . 4 . . . . 1 . . . . . . Core 6 | . . . . . 2 . . . . 3 . . 1 . . . Reactor 5 | . . . . . . . . 1 . 1 . . . . 3 . Propulsion 52 | 2 4 3 2 2 1 . . 5 . 7 2 . 3 2 14 5 Treads 4 | . . . . . . . . 1 . . . . . . 3 . Leg 35 | 2 4 1 1 . . . . 4 . 7 2 . 3 2 9 . Wheel 6 | . . 2 1 2 1 . . . . . . . . . . . Hover 6 | . . . . . . . . . . . . . . . 2 4 Flight 1 | . . . . . . . . . . . . . . . . 1 Utility 85 | 2 5 4 5 5 15 1 . 7 2 12 . . 3 4 19 1 Device 47 | 1 4 4 2 5 5 1 . 3 1 4 . . 2 4 10 1 Storage 7 | 1 1 . 2 . 1 . . 1 . . . . . . 1 . Processor 6 | . . . . . 2 . . . . . . . . . 4 . Hackware 2 | . . . . . . . . . . . . . . . 2 . Protection 23 | . . . 1 . 7 . . 3 1 8 . . 1 . 2 . Artifact . | . . . . . . . . . . . . . . . . . Weapon 46 | 2 8 . 3 6 1 . . 5 . 5 2 . 3 2 8 1 Energy Gun 4 | . 2 . . . . . . . . . . . . . 2 . Energy Cannon 9 | . 1 . . 2 1 . . 1 . 3 . . 1 . . . Ballistic Gun 11 | 2 3 . . . . . . . . . . . 2 1 3 . Ballistic Cannon 11 | . 2 . 2 3 . . . 2 . 1 1 . . . . . Launcher 7 | . . . 1 1 . . . 2 . 1 . . . . 2 . Special Weapon . | . . . . . . . . . . . . . . . . . Impact Weapon . | . . . . . . . . . . . . . . . . . Slashing Weapon 4 | . . . . . . . . . . . 1 . . 1 1 1 Piercing Weapon . | . . . . . . . . . . . . . . . . . Special Melee Weapon . | . . . . . . . . . . . . . . . . . Unidentified Prototypes 6 | . . . . . 1 . . . . 2 . . 1 . 2 . Corrupted Parts 1 | . . . . . . . . . . . 1 . . . . . System Corruption 2 | . . . . . . . . . . . 2 . . . . . Parts Lost 45 | . . . . . . . . 2 . 1 . . . 1 33 8 Power 3 | . . . . . . . . 1 . . . . . . 2 . Propulsion 25 | . . . . . . . . 1 . . . . . 1 17 6 Utility 12 | . . . . . . . . . . 1 . . . . 10 1 Weapon 5 | . . . . . . . . . . . . . . . 4 1 Highest Loss Streak 18 | . . . . . . . . 2 . 1 . . . 1 18 4 To Critical Strikes . | . . . . . . . . . . . . . . . . . Average Slot Usage (%) 92 | . 98 100 100 100 94 92 92 92 100 98 93 93 94 92 77 30 Engine 7 | . 14 14 11 9 10 7 7 7 7 2 . . . . . . Core 2 | . . . . . 3 7 7 5 . 4 6 6 5 5 . . Reactor 2 | . . . . . . . . 1 7 4 6 6 5 5 6 . Leg 15 | . 27 14 2 . . . . 3 30 32 33 33 35 30 21 . Wheel 11 | . . 13 30 36 25 23 23 19 . . . . . . . . Device 13 | . 19 14 20 18 13 15 15 13 13 11 6 6 10 14 17 . Storage 7 | . 7 14 11 9 7 7 7 7 7 6 6 6 5 5 3 . Processor 4 | . . . . . 7 7 7 7 7 6 6 6 5 5 6 15 Protection 6 | . . . 1 9 8 7 7 8 8 14 13 13 11 9 4 . Energy Cannon 5 | . 7 14 4 2 7 7 7 7 7 6 6 6 4 . . . Ballistic Gun 2 | . 7 . . . . . . . . . . . 1 11 10 . Ballistic Cannon 7 | . 8 14 17 15 7 7 7 6 7 5 5 6 4 . . . Naked Turns . | . . . . . . . . . . . . . . . . . Heaviest Build 91 | 9 25 25 41 51 87 77 77 89 59 79 79 79 84 89 91 3 Greatest Support 113 | 20 20 24 36 48 52 52 52 57 57 77 90 90 108 108 113 8 Greatest Overweight (x) 2 | . 1 1 1 1 1 1 1 2 1 1 . . . . 1 . Average Overweight (x) . | . . 1 . . 1 1 1 . . . . . . . . . Largest Inventory Capacity 20 | 5 10 10 15 15 20 20 20 20 10 10 10 10 10 10 10 5 Average Capacity 12 | 5 7 10 10 15 18 20 20 18 10 10 10 10 10 10 9 5 Most Carried 20 | 5 10 10 15 15 20 20 20 20 10 10 10 10 10 10 10 5 Average Carried 11 | 3 6 9 10 14 17 19 20 18 10 9 9 9 9 9 8 4 Final Capacity 20 | 5 10 10 15 15 20 20 20 10 10 10 10 10 10 10 5 5 Final Carried 20 | 5 10 10 15 15 20 20 20 10 10 10 10 10 10 10 5 4 Class Distribution -------------------- 77% | Mutant 15% | Scavenger-Mutant 7% | Scavenger-Tank Dominant Class ---------------- Mutant | -10/Materials Mutant | -10/Mines Mutant | -9/Materials Mutant | -8/Materials Mutant | -7/Factory Mutant | -7/Waste Mutant | -7/Factory Mutant | -7/Lower Caves Scavenger-Mutant | -7/Lower Caves Mutant | -6/Factory Mutant | -6/Lower Caves Scavenger-Mutant | -6/Lower Caves Mutant | -5/Factory Scavenger-Mutant | -4/Factory Scavenger-Tank | -3/Research Mutant | -2/Research Resources | -11 -10 -10 -9 -8 -7 -7 -7 -7 -7 -6 -6 -6 -5 -4 -3 -2 ----------- Run | Yrd Mat Min Mat Mat Fac Was Fac Low Low Fac Low Low Fac Fac Res Res Matter Collected 5006 | 404 378 146 364 300 549 14 6 342 62 514 335 . 184 166 1229 13 Remotely . | . . . . . . . . . . . . . . . . . Salvage Created 6303 | 140 477 281 557 332 622 . 29 372 16 517 455 . 245 166 2094 . Parts 332 | 10 34 16 36 21 29 . 1 16 . 31 15 . 20 5 98 . Haulers Intercepted 8 | . 2 . 1 1 . . 1 . . 1 . . . . 2 . Recyclers Shooed 5 | . 1 . . . 1 . . . . 3 . . . . . . Parts Field Recycled . | . . . . . . . . . . . . . . . . . Retrieved Matter . | . . . . . . . . . . . . . . . . . Parts Self-Destructed 27 | . . . . . . . . 16 . . 11 . . . . . Prevented 2 | . . . . . . . . . . . 2 . . . . . Kills | -11 -10 -10 -9 -8 -7 -7 -7 -7 -7 -6 -6 -6 -5 -4 -3 -2 ------- Run | Yrd Mat Min Mat Mat Fac Was Fac Low Low Fac Low Low Fac Fac Res Res Combat Hostiles Destroyed 122 | 1 12 7 16 10 13 . . 13 1 14 6 . 3 2 24 . Melee 1 | . . . . . . . . . . . . . . . 1 . Guns 35 | 1 11 . . . . . . . . . . . 1 2 20 . Cannons 67 | . 1 7 12 6 13 . . 8 1 12 6 . 1 . . . AOE 18 | . . . 4 4 . . . 5 . 2 . . . . 3 . Classes Destroyed 18 | 3 5 1 . 1 2 . . . . 1 3 . . . 2 . Worker 9 | 1 . . . . 1 . . . . 2 . . 2 . 3 . Builder 4 | . . . . . . . . . . 1 . . 1 . 2 . Tunneler 5 | 4 . . . . . . . . . 1 . . . . . . Hauler 8 | . 2 . 1 1 . . 1 . . 1 . . . . 2 . Recycler 2 | . 1 1 . . . . . . . . . . . . . . Operator 4 | . 2 . . 1 . . . . . . . . 1 . . . Watcher 12 | . 3 . 2 . 3 . . . . 1 . . 1 . 2 . Swarmer 28 | . 6 3 4 4 . . . 3 . 8 . . . . . . Cutter 1 | . . . . . . . . . . . . . . . 1 . Grunt 42 | 1 6 2 6 3 5 . . 8 . 2 . . . . 9 . Brawler 4 | . . . . . . . . . . . . . . . 4 . Duelist 3 | . . . . 1 . . . 1 . . . . . . 1 . Sentry 18 | . . 2 6 2 3 . . 1 . . 1 . . 2 1 . Hunter 6 | . . . . . 2 . . . . 3 . . 1 . . . Programmer 14 | . . . . . 3 . . . 1 1 . . 2 . 7 . Behemoth 1 | . . . . . . . . . . . . . . . 1 . Samaritan 3 | . . . . . . . . . . . 3 . . . . . Savage 3 | . . . . . . . . . . . 3 . . . . . Butcher 1 | . . . . . . . . . . . 1 . . . . . Mutant 1 | . . . . . . . . . . . 1 . . . . . Best Kill Streak 7 | 4 6 3 4 6 4 . 1 7 1 4 4 . 4 1 7 . Combat Bots Only 7 | 1 3 2 4 5 4 . . 7 1 4 4 . 2 1 6 . Max Kills in Single Turn 4 | 1 1 1 2 4 1 . 1 2 1 4 1 . 1 1 2 . Gunslinging 1 | . . . . . . . . . . . . . . . 1 . Exploded 4 | . . . 2 4 . . . 2 . 2 . . . . 1 . Melee 1 | . . . . . . . . . . . . . . . 1 . Uniques/NPCs Destroyed . | . . . . . . . . . . . . . . . . . Combat | -11 -10 -10 -9 -8 -7 -7 -7 -7 -7 -6 -6 -6 -5 -4 -3 -2 -------- Run | Yrd Mat Min Mat Mat Fac Was Fac Low Low Fac Low Low Fac Fac Res Res Hostile Shots Fired 1047 | 9 48 32 45 19 118 . . 65 11 106 44 10 34 26 338 142 Missed 334 | . 12 9 20 5 49 . . 19 5 30 11 3 6 7 107 51 Damage Taken 12741 | 94 352 275 295 202 848 . . 753 90 1061 278 64 425 345 5154 2505 Core 2748 | 31 80 65 . 24 32 . . 23 29 32 3 . 20 15 936 1458 Absorbed by Shields 649 | . . . . 55 . . . . . . . . . 45 549 . Ignored by Resistances 491 | . . . . . . . . . . 221 22 33 78 59 78 . Regen/Repaired (Parts) 271 | . . . . . . . . . . 165 . . . 106 . . Core Remaining (%) 79 | 87 . 29 100 95 . . . . 88 . . 95 98 98 28 . Volleys Fired 401 | 14 50 19 39 21 55 . 3 20 7 51 17 . 18 11 76 . Largest 3 | 2 2 2 2 2 2 . 2 2 2 2 2 . 2 2 3 . Hottest 221 | 40 99 99 99 113 113 . 78 78 78 83 153 . 146 66 221 . Shots Fired 846 | 28 100 38 74 40 110 . 6 35 14 100 34 1 37 22 207 . Gun 351 | 28 86 . . . . . . . . . . . 14 22 201 . Cannon 477 | . 14 38 70 38 110 . 6 30 14 99 34 1 23 . . . Launcher 18 | . . . 4 2 . . . 5 . 1 . . . . 6 . Special . | . . . . . . . . . . . . . . . . . Kinetic 585 | 28 59 19 63 37 55 . 3 15 7 49 17 . 25 22 186 . Thermal 243 | . 41 19 7 1 55 . 3 15 7 50 17 1 12 . 15 . Explosive 18 | . . . 4 2 . . . 5 . 1 . . . . 6 . Electromagnetic . | . . . . . . . . . . . . . . . . . Robot Hit Streak 14 | 5 8 7 8 11 7 . 8 10 7 7 6 . 5 12 14 . Robot Miss Streak 6 | 2 6 2 5 3 4 . . 2 2 3 2 1 2 1 5 . Penetration Max 1 | . . . . . 1 . . . . . . . 1 1 1 . Secondary Targets 8 | . 1 . . . . . . . . . . . . . 7 . Max Gunslinging Chain 1 | . 1 . . . . . . . . . . . . . 1 . Shots Hit Robots 555 | 18 69 23 40 24 71 . 5 26 9 59 29 . 21 20 139 2 Core Hits 301 | 7 50 13 24 15 26 . 1 23 1 29 11 . 10 7 78 6 Critical Kills 8 | . . . . . . . . . . . . . 1 . 7 . Critical Parts Destroyed 5 | . . . . . . . . . . . . . 1 1 3 . Critical Strikes 37 | . . . 1 2 4 . . 3 1 6 2 . 3 2 13 . Meltdown 1 | . . . . . . . . . . . . . 1 . . . Destroy 14 | . . . . . . . . . . . . . 1 2 11 . Blast 20 | . . . 1 2 4 . . 3 1 6 2 . 1 . . . Sever 2 | . . . . . . . . . . . . . . . 2 . Melee Attacks 27 | . . . . . . . . . . . 5 . . . 13 9 Impact . | . . . . . . . . . . . . . . . . . Slashing 27 | . . . . . . . . . . . 5 . . . 13 9 Piercing . | . . . . . . . . . . . . . . . . . Sneak Attacks 6 | . . . . . . . . . . . 5 . . . 1 . Combat Hostiles . | . . . . . . . . . . . . . . . . . Follow-up Attacks . | . . . . . . . . . . . . . . . . . Damage Inflicted 17083 | 230 910 452 1011 688 2050 . 140 1289 301 2057 1128 . 798 527 5376 126 Guns 6039 | 230 778 . . . . . . . . . . . 212 527 4292 . Cannons 7980 | . 124 432 820 469 2027 . 140 594 301 1854 748 . 471 . . . Explosions 2044 | . . . 183 219 . . . 695 . 176 . . 115 . 656 . Melee 808 | . . . . . . . . . . . 380 . . . 358 70 Ramming 212 | . 8 20 8 . 23 . . . . 27 . . . . 70 56 Kinetic 9731 | 230 517 171 732 440 979 . 57 301 170 829 366 . 376 527 4036 . Thermal 4288 | . 385 261 88 29 1048 . 83 293 131 1025 382 . 307 . 256 . Explosive 2044 | . . . 183 219 . . . 695 . 176 . . 115 . 656 . Electromagnetic . | . . . . . . . . . . . . . . . . . Impact . | . . . . . . . . . . . . . . . . . Slashing 808 | . . . . . . . . . . . 380 . . . 358 70 Piercing . | . . . . . . . . . . . . . . . . . Highest Corruption 17 | . . . . . . . . . . . 2 2 2 . 17 11 Average Corruption 5 | . . . . . . . . . . . 2 2 1 . 7 5 Corruption Purged . | . . . . . . . . . . . . . . . . . Corruption Blocked 8 | . . . . . 8 . . . . . . . . . . . Effects 40 | . . . . . . . . . . . . 5 4 . 26 5 Message Errors 10 | . . . . . . . . . . . . 1 1 . 7 1 Matter Fused 10 | . . . . . . . . . . . . . 1 . 7 2 Heat Flow Errors 4 | . . . . . . . . . . . . 1 . . 3 . Energy Discharges 3 | . . . . . . . . . . . . . 1 . 2 . Parts Rejected 1 | . . . . . . . . . . . . . . . 1 . Parts Fused 1 | . . . . . . . . . . . . 1 . . . . Data Loss (minor) 1 | . . . . . . . . . . . . . . . 1 . Data Loss (major) 1 | . . . . . . . . . . . . . . . 1 . Misfires 2 | . . . . . . . . . . . . 1 1 . . . Alerts 4 | . . . . . . . . . . . . 1 . . 2 1 Misdirections 3 | . . . . . . . . . . . . . . . 2 1 Overload Shots 3 | . . . . . . . . . . . 3 . . . . . Overflow Damage 508 | . 13 . 57 . 46 . . 26 25 50 216 . 42 . 31 2 Projectiles 244 | . 13 . 20 . 46 . . 26 25 50 22 . 42 . . . Explosions 47 | . . . 37 . . . . . . . . . . . 10 . Melee 217 | . . . . . . . . . . . 194 . . . 21 2 Knockbacks 39 | . . . 7 4 13 . . 1 4 8 . . 2 . . . Impact . | . . . . . . . . . . . . . . . . . Kinetic 38 | . . . 7 4 13 . . 1 4 7 . . 2 . . . Secondary 1 | . . . . . . . . . . 1 . . . . . . Self-Inflicted Damage 228 | . . 4 3 35 11 . . 110 . 29 . . . . 10 26 Shots 6 | . . . . 1 . . . 4 . 1 . . . . . . Rammed 24 | . . 4 2 . 2 . . . . . . . . . 8 8 Targets Rammed 37 | . 3 7 2 . 2 . . . . 5 . . . . 10 8 Kicked 13 | . 3 3 . . . . . . . 5 . . . . 2 . Crushed . | . . . . . . . . . . . . . . . . . Highest Temperature 280 | 6 242 280 18 14 126 . . 8 . . 144 254 126 . 239 . Average Temperature 75 | 5 67 124 6 6 37 . . 4 . . 90 135 56 . 98 . Received Heat Transfer 2083 | 54 132 111 114 60 249 . . 243 . 27 90 . . 84 820 99 Effects 7 | . 4 2 . . . . . . . . . . . . 1 . Energy Bleed 1 | . 1 . . . . . . . . . . . . . . . Interference 6 | . 3 2 . . . . . . . . . . . . 1 . Siege Activations . | . . . . . . . . . . . . . . . . . Robots Corrupted . | . . . . . . . . . . . . . . . . . Combat Hostiles . | . . . . . . . . . . . . . . . . . Parts Fried . | . . . . . . . . . . . . . . . . . Impact Corruptions 2 | . . . . . . . . . . . . . . . 1 1 Robots Melted 1 | . . . . . . . . . . . . . 1 . . . Combat Hostiles 1 | . . . . . . . . . . . . . 1 . . . Parts Melted 1 | . . . . . . . . . . . . . . . 1 . Heat Transferred 6165 | . 541 555 185 37 1406 . 111 407 148 1462 580 . 400 . 333 . Parts Sabotaged . | . . . . . . . . . . . . . . . . . Parts Stolen . | . . . . . . . . . . . . . . . . . Parts Stripped . | . . . . . . . . . . . . . . . . . Power Chain Reactions . | . . . . . . . . . . . . . . . . . Alert | -11 -10 -10 -9 -8 -7 -7 -7 -7 -7 -6 -6 -6 -5 -4 -3 -2 ------- Run | Yrd Mat Min Mat Mat Fac Was Fac Low Low Fac Low Low Fac Fac Res Res Peak Influence 380 | 45 296 87 291 292 369 107 82 . . 246 . . 380 172 344 378 Initial 155 | . 29 1 . 118 88 107 74 . . 32 . . 9 88 90 155 Average 113 | 21 146 20 136 128 90 107 78 . . 114 . . 106 123 175 212 Maximum Alert Level 1 | . 1 . 1 1 1 . . . . 1 . . 1 . 1 1 Low Security (%) 83 | 100 64 100 72 88 90 100 100 . . 97 . . 90 100 55 61 Level 1 16 | . 35 . 27 11 9 . . . . 2 . . 9 . 44 38 Level 2 . | . . . . . . . . . . . . . . . . . Level 3 . | . . . . . . . . . . . . . . . . . Level 4 . | . . . . . . . . . . . . . . . . . Level 5 . | . . . . . . . . . . . . . . . . . High Security . | . . . . . . . . . . . . . . . . . Max Security . | . . . . . . . . . . . . . . . . . Squads Dispatched 31 | . 2 . 3 1 2 . . . . 4 . . 1 2 10 6 Investigation 4 | . 1 . . . . . . . . . . . . . . 3 Extermination 8 | . . . . . 2 . . . . 2 . . 1 1 2 . Reinforcement 16 | . 1 . 3 1 . . . . . 2 . . . 1 5 3 Assault . | . . . . . . . . . . . . . . . . . Garrison 3 | . . . . . . . . . . . . . . . 3 . Intercept . | . . . . . . . . . . . . . . . . . Searches Triggered . | . . . . . . . . . . . . . . . . . Construction Impeded 1 | . . . 1 . . . . . . . . . . . . . Haulers Reinforced 2 | . . . . . . . . . . . . . . . 2 . Active Scanning Responses . | . . . . . . . . . . . . . . . . . Cargo Convoy Interrupts 1 | . . . . . 1 . . . . . . . . . . . Stealth | -11 -10 -10 -9 -8 -7 -7 -7 -7 -7 -6 -6 -6 -5 -4 -3 -2 --------- Run | Yrd Mat Min Mat Mat Fac Was Fac Low Low Fac Low Low Fac Fac Res Res Distress Signals 11 | . 2 1 3 . 2 . . . . . . . . . 2 1 Communications Jammed . | . . . . . . . . . . . . . . . . . Distress Signals . | . . . . . . . . . . . . . . . . . Times Spotted 220 | 1 21 7 24 12 29 . . 14 1 18 6 3 5 3 46 30 Peak Tracking Total 22 | 1 4 4 4 4 8 . . 5 1 4 3 3 2 2 9 22 Tactical Retreats 18 | . 1 2 1 . 4 . . . . 1 . . . . 4 5 Traps | -11 -10 -10 -9 -8 -7 -7 -7 -7 -7 -6 -6 -6 -5 -4 -3 -2 ------- Run | Yrd Mat Min Mat Mat Fac Was Fac Low Low Fac Low Low Fac Fac Res Res Traps Triggered 6 | . 2 . . . 2 . . . . 1 . . . . . 1 Indirectly . | . . . . . . . . . . . . . . . . . Trap Hack Attempts . | . . . . . . . . . . . . . . . . . Triggered . | . . . . . . . . . . . . . . . . . Disarmed . | . . . . . . . . . . . . . . . . . Reprogrammed . | . . . . . . . . . . . . . . . . . Reused . | . . . . . . . . . . . . . . . . . Traps Extracted . | . . . . . . . . . . . . . . . . . Installed . | . . . . . . . . . . . . . . . . . Triggered 2 | . . . . . 1 . . . 1 . . . . . . . Machines | -11 -10 -10 -9 -8 -7 -7 -7 -7 -7 -6 -6 -6 -5 -4 -3 -2 ---------- Run | Yrd Mat Min Mat Mat Fac Was Fac Low Low Fac Low Low Fac Fac Res Res Machines Disabled 16 | . 1 . 1 2 2 . . 1 . 1 . . 8 . . . Max in Single Turn 3 | . 1 . 1 2 1 . . 1 . 1 . . 3 . . . Garrison Access 2 | . . . . 1 1 . . . . . . . . . . . Machines Repaired . | . . . . . . . . . . . . . . . . . Machines Dismantled . | . . . . . . . . . . . . . . . . . Machines Sabotaged . | . . . . . . . . . . . . . . . . . Overloaded Fab Kills . | . . . . . . . . . . . . . . . . . Hacking | -11 -10 -10 -9 -8 -7 -7 -7 -7 -7 -6 -6 -6 -5 -4 -3 -2 --------- Run | Yrd Mat Min Mat Mat Fac Was Fac Low Low Fac Low Low Fac Fac Res Res Machines Accessed 46 | . 5 1 4 6 8 . 1 2 . 6 . 1 2 1 4 5 Terminals 25 | . 5 1 4 2 3 . . 1 . 2 . . 2 . 2 3 Fabricators 5 | . . . . . 1 . . . . 1 . . . . 1 2 Repair Stations 3 | . . . . . . . . . . 2 . . . 1 . . Recycling Units 4 | . . . . 2 2 . . . . . . . . . . . Scanalyzers 2 | . . . . 1 1 . . . . . . . . . . . Garrison Access 5 | . . . . 1 1 . 1 . . 1 . . . . 1 . Total Hacks 105 | . 12 5 9 17 17 . 3 4 . 15 . 1 3 2 6 11 Successful 41 | . 4 2 2 9 7 . . 4 . 6 . 1 1 2 1 2 Failed 63 | . 8 3 7 7 10 . 3 . . 9 . . 2 . 5 9 Catastrophic 21 | . 1 . 3 3 3 . 1 . . 2 . . 1 . 3 4 Database Lockouts 1 | . . . . 1 . . . . . . . . . . . . Manual 33 | . 4 4 11 7 1 . . . . 1 . . . . 3 2 Terminals 66 | . 12 5 9 8 9 . . 3 . 5 . . 3 . 3 9 Fabricators 6 | . . . . . 1 . . . . 1 . . . . 2 2 Repair Stations 10 | . . . . . . . . . . 8 . . . 2 . . Recycling Units 10 | . . . . 5 5 . . . . . . . . . . . Scanalyzers 3 | . . . . 2 1 . . . . . . . . . . . Garrison Access 8 | . . . . 2 1 . 3 . . 1 . . . . 1 . Terminal Hacks 22 | . 4 2 2 4 2 . . 4 . 2 . 1 1 . . . Record 8 | . 1 . . 2 2 . . 3 . . . . . . . . Robot Analysis 3 | . . . 2 1 . . . . . . . . . . . . Prototype ID Bank 1 | . 1 . . . . . . . . . . . . . . . Open Door 3 | . . . . . . . . 1 . 1 . 1 . . . . Alert Level 2 | . 1 . . . . . . . . 1 . . . . . . Unreport Threat 2 | . . 1 . 1 . . . . . . . . . . . . Dispatch Records 1 | . . 1 . . . . . . . . . . . . . . Maintenance Status 1 | . 1 . . . . . . . . . . . . . . . Zone Layout 1 | . . . . . . . . . . . . . 1 . . . Fabricator Hacks 3 | . . . . . . . . . . . . . . . 1 2 Network Status 2 | . . . . . . . . . . . . . . . 1 1 Build 1 | . . . . . . . . . . . . . . . . 1 Repair Station Hacks 6 | . . . . . . . . . . 4 . . . 2 . . Scan Component 3 | . . . . . . . . . . 2 . . . 1 . . Repair 3 | . . . . . . . . . . 2 . . . 1 . . Recycling Unit Hacks 6 | . . . . 2 4 . . . . . . . . . . . Process 1 | . . . . . 1 . . . . . . . . . . . Report Inventory 2 | . . . . . 2 . . . . . . . . . . . Retrieve Matter 3 | . . . . 2 1 . . . . . . . . . . . Scanalyzer 2 | . . . . 2 . . . . . . . . . . . . Insert Component 1 | . . . . 1 . . . . . . . . . . . . Analyze 1 | . . . . 1 . . . . . . . . . . . . Garrison Access Hacks 2 | . . . . 1 1 . . . . . . . . . . . Seal Access 2 | . . . . 1 1 . . . . . . . . . . . Unauthorized Hacks . | . . . . . . . . . . . . . . . . . Terminals . | . . . . . . . . . . . . . . . . . Fabricators . | . . . . . . . . . . . . . . . . . Repair Stations . | . . . . . . . . . . . . . . . . . Recycling Units . | . . . . . . . . . . . . . . . . . Scanalyzers . | . . . . . . . . . . . . . . . . . Garrison Access . | . . . . . . . . . . . . . . . . . Data Cores Recovered 2 | . 1 . . 1 . . . . . . . . . . . . Used 1 | . . . . 1 . . . . . . . . . . . . Hacking Detections 36 | . 5 1 4 3 6 . 1 1 . 5 . . 2 1 4 3 Full Trace Events 4 | . 1 . . . . . . . . . . . . . . 3 Feedback Events 1 | . . . . . . . . . . . . . . . . 1 Corruption 1 | . . . . . . . . . . . . . . . . 1 Feedback Blocked . | . . . . . . . . . . . . . . . . . Robot Schematics Acquired . | . . . . . . . . . . . . . . . . . Robots Built . | . . . . . . . . . . . . . . . . . Authchips . | . . . . . . . . . . . . . . . . . Time . | . . . . . . . . . . . . . . . . . Total Robot Build Rating . | . . . . . . . . . . . . . . . . . Part Schematics Acquired 1 | . . . . 1 . . . . . . . . . . . . Parts Built 2 | . . . . . . . . . . . . . . . . 2 Authchips . | . . . . . . . . . . . . . . . . . Time 139 | . . . . . . . . . . . . . . . . 139 Total Part Build Rating 18 | . . . . . . . . . . . . . . . . 18 Parts Repaired 3 | . . . . . . . . . . 2 . . . 1 . . Time 120 | . . . . . . . . . . 82 . . . 38 . . Parts Recycled . | . . . . . . . . . . . . . . . . . Recycled Matter 3 | . . . . . 3 . . . . . . . . . . . Retrieved Matter 99 | . . . . 96 3 . . . . . . . . . . . Retrieved Components . | . . . . . . . . . . . . . . . . . Parts Scanalyzed 1 | . . . . 1 . . . . . . . . . . . . Part Schematics Acquired 1 | . . . . 1 . . . . . . . . . . . . Parts Damaged . | . . . . . . . . . . . . . . . . . Bothacking | -11 -10 -10 -9 -8 -7 -7 -7 -7 -7 -6 -6 -6 -5 -4 -3 -2 ------------ Run | Yrd Mat Min Mat Mat Fac Was Fac Low Low Fac Low Low Fac Fac Res Res Used RIF Installer . | . . . . . . . . . . . . . . . . . Robots Hacked . | . . . . . . . . . . . . . . . . . Non-combat . | . . . . . . . . . . . . . . . . . Combat . | . . . . . . . . . . . . . . . . . Robot Hacks Applied . | . . . . . . . . . . . . . . . . . Relay Couplers Released . | . . . . . . . . . . . . . . . . . Fabnet Peak Effective % . | . . . . . . . . . . . . . . . . . Robots Rewired . | . . . . . . . . . . . . . . . . . Allies Hacked . | . . . . . . . . . . . . . . . . . Hacks Repelled . | . . . . . . . . . . . . . . . . . Allies | -11 -10 -10 -9 -8 -7 -7 -7 -7 -7 -6 -6 -6 -5 -4 -3 -2 -------- Run | Yrd Mat Min Mat Mat Fac Was Fac Low Low Fac Low Low Fac Fac Res Res Total Allies 2 | . . 1 . . . 1 . . . . . . . . . . Largest Group 1 | . . 1 . . . 1 1 1 . . . . . . . . Highest-Rated Group 31 | . . 31 . . . 31 31 31 . . . . . . . . Highest-Rated Ally 31 | . . 31 . . . 31 31 31 . . . . . . . . Total Orders . | . . . . . . . . . . . . . . . . . Ally Attacks 2 | . . . . . . . . 2 . . . . . . . . Total Damage 42 | . . . . . . . . 42 . . . . . . . . Kills 1 | . . . . . . . . 1 . . . . . . . . Allies Corrupted . | . . . . . . . . . . . . . . . . . Allies Melted . | . . . . . . . . . . . . . . . . . Intel | -11 -10 -10 -9 -8 -7 -7 -7 -7 -7 -6 -6 -6 -5 -4 -3 -2 ------- Run | Yrd Mat Min Mat Mat Fac Was Fac Low Low Fac Low Low Fac Fac Res Res Robot Analysis Total 3 | . . . 2 1 . . . . . . . . . . . . Derelict Logs Recovered 4 | . . 2 . . . . . 2 . . . . . . . . Drone Launches . | . . . . . . . . . . . . . . . . . Drone Recoveries . | . . . . . . . . . . . . . . . . . Exploration | -11 -10 -10 -9 -8 -7 -7 -7 -7 -7 -6 -6 -6 -5 -4 -3 -2 ------------- Run | Yrd Mat Min Mat Mat Fac Was Fac Low Low Fac Low Low Fac Fac Res Res Turns Passed 12965 | 206 1322 1209 934 672 2043 94 203 1278 130 1673 712 251 425 312 1087 414 Spaces Moved 8420 | 131 734 753 548 345 1329 83 175 957 64 874 500 200 282 176 752 517 Core 791 | 13 . . . . . . . . . . . . . . 314 464 Treads 1 | . . . . . . . . . . . . . . . 1 . Legs 3802 | 118 734 299 . . . . . 118 64 874 500 200 282 176 437 . Wheels 3773 | . . 454 548 345 1329 83 175 839 . . . . . . . . Hover . | . . . . . . . . . . . . . . . . . Flight 53 | . . . . . . . . . . . . . . . . 53 Fastest Speed 40 | 50 120 105 90 90 105 108 108 108 115 116 116 122 121 121 50 40 Average Speed 111 | 113 146 138 95 99 107 108 108 111 116 119 117 122 121 121 94 48 Slowest Speed 192 | 120 190 190 105 105 108 108 108 190 190 192 122 122 121 121 190 50 Overloaded Moves . | . . . . . . . . . . . . . . . . . Propulsion Burnouts . | . . . . . . . . . . . . . . . . . Robots Hopped 1 | . . . . . . . . . . . . . . . . 1 Cave-ins Triggered . | . . . . . . . . . . . . . . . . . Exploration Rate (%) 36 | 8 86 92 47 33 27 70 4 93 8 15 67 24 6 5 23 19 Regions Visited 16 Branch Regions 5 Pre-discovered Areas 2 | . . . . . . . . 2 . . . . . . . . Known Exits Taken 9 | . . . . . . . 1 1 1 1 1 1 1 1 1 . Unknown Exits Taken 5 | 1 1 1 1 1 . . . . . . . . . . . . Scrap Searched 8 | . . 1 . . . . . 4 . . 1 2 . . . . Spaces Dug 53 | . . . 7 1 . . . . . 17 . . . . 22 6 Terrain Destroyed 336 | . . 2 40 29 22 . 1 88 2 40 11 1 55 4 35 6 Melee 6 | . . . . . . . . . . . . . . . . 6 Projectile 88 | . . 2 4 2 22 . 1 8 2 23 11 1 5 4 3 . AOE 241 | . . . 36 27 . . . 80 . 17 . . 50 . 31 . Terrain Rammed . | . . . . . . . . . . . . . . . . . Walls Destroyed . | . . . . . . . . . . . . . . . . . Machines Disabled . | . . . . . . . . . . . . . . . . . Actions | -11 -10 -10 -9 -8 -7 -7 -7 -7 -7 -6 -6 -6 -5 -4 -3 -2 --------- Run | Yrd Mat Min Mat Mat Fac Was Fac Low Low Fac Low Low Fac Fac Res Res Total 11189 | 158 889 875 887 639 1846 89 183 1135 104 1396 584 208 331 252 948 665 Wait 1862 | 1 44 86 261 235 394 . 6 121 32 414 56 5 8 52 24 123 Move 8403 | 130 733 752 547 344 1329 82 174 956 63 873 499 199 281 175 751 515 Hop 1 | . . . . . . . . . . . . . . . . 1 Pick Up 99 | 6 14 1 13 12 19 2 . 7 . 8 1 2 5 1 8 . Fast Attach 74 | 6 9 . 2 1 5 . . 1 . 9 1 . 2 6 26 6 Attach 31 | 1 . . 2 2 2 . . 5 . 3 . . 2 2 11 1 Detach 7 | . 1 . . . . . . . . . . . . 2 4 . Swap 101 | . 12 7 8 10 16 1 . 12 2 17 3 . 6 . 7 . Drop 146 | . 23 3 13 14 24 4 . 13 . 16 2 2 9 3 18 2 Fire 401 | 14 50 19 39 21 55 . 3 20 7 51 17 . 18 11 76 . Melee 27 | . . . . . . . . . . . 5 . . . 13 9 Ram 24 | . . 4 2 . 2 . . . . . . . . . 8 8 Kick 13 | . 3 3 . . . . . . . 5 . . . . 2 . Crush . | . . . . . . . . . . . . . . . . . Escape Stasis . | . . . . . . . . . . . . . . . . . Rewire . | . . . . . . . . . . . . . . . . . Trap . | . . . . . . . . . . . . . . . . . Miscellaneous . | . . . . . . . . . . . . . . . . . Route ------- -11/Scrapyard -10/Materials (discovered 3 exits: *Mat x2 / *Min) -10/Mines (discovered 2 exits: *Mat x2) -9/Materials (discovered 2 exits: *Mat x2) -8/Materials (discovered 2 exits: *Fac / Sto) -7/Factory -7/Waste -7/Factory -7/Lower Caves -7/Lower Caves -6/Factory (discovered 2 exits: *Low / *Ext) -6/Lower Caves -6/Lower Caves -5/Factory -4/Factory -3/Research (discovered 2 exits: *Res / *Qua) -2/Research (discovered 1 exit: *Tes) History --------- Turn | Location | Event 2 | -11/Scrapyard | Met Revision 17 72 | -11/Scrapyard | Discovered new exit (range 8) 207 | -11/Scrapyard | Entered Materials 322 | -10/Materials | Build established: Mutant 584 | -10/Materials | Discovered new exit (range 8) 723 | -10/Materials | Discovered new exit (range 9) 1434 | -10/Materials | Discovered new exit (range 11) 1529 | -10/Materials | Entered Mines 1734 | -10/Mines | Core integrity fell below 50% 1766 | -10/Mines | Discovered new exit (range 12) 2156 | -10/Mines | Learned Materials stockpile data 2325 | -10/Mines | Received a Mining Laser from a helpful Derelict 2351 | -10/Mines | Discovered new exit (range 5) 2738 | -10/Mines | Entered Materials 2738 | -9/Materials | Evolved 2 slots: Propulsion x1, Utility x1 3345 | -9/Materials | Discovered new exit (range 15) 3660 | -9/Materials | Discovered new exit (range 8) 3672 | -9/Materials | Entered another Materials area 3672 | -8/Materials | Evolved 2 slots: Propulsion x1, Utility x1 3673 | -8/Materials | Identified exit to Storage 4115 | -8/Materials | Central database locked down 4211 | -8/Materials | Discovered new exit (range 4) 4344 | -8/Materials | Entered Factory 4344 | -7/Factory | Evolved 2 slots: Power x1, Utility x1 5339 | -7/Factory | Cargo convoy interrupted 6387 | -7/Factory | Sucked down chute 6387 | -7/Factory | Entered Waste 6387 | -7/Waste | The area was eerily silent 6388 | -7/Waste | Met a frightened Derelict 6461 | -7/Waste | Discovered new exit (range 10) 6479 | -7/Waste | Identified exit to Factory 6481 | -7/Waste | Entered Factory 6481 | -7/Factory | Accompanied by 1 ally 6513 | -7/Factory | Discovered new exit (range 10) 6521 | -7/Factory | Identified exit to Lower Caves 6684 | -7/Factory | Entered Lower Caves 6684 | -7/Lower Caves | Accompanied by 1 ally 7554 | -7/Lower Caves | Encountered a Warlord checkpoint 7567 | -7/Lower Caves | Identified exit to Lower Caves 7612 | -7/Lower Caves | Attracted the attention of an 0b10 base 7667 | -7/Lower Caves | Destroyed 7 combat bots 7759 | -7/Lower Caves | Attracted the attention of an 0b10 checkpoint 7962 | -7/Lower Caves | Entered another Lower Caves area 8003 | -7/Lower Caves | Build established: Scavenger-Mutant 8088 | -7/Lower Caves | Discovered new exit (range 4) 8091 | -7/Lower Caves | Identified exit to Factory 8092 | -7/Lower Caves | Entered Factory 8092 | -6/Factory | Evolved 2 slots: Propulsion x1, Utility x1 8481 | -6/Factory | Discovered new exit (range 6) 8484 | -6/Factory | Identified exit to Extension 9029 | -6/Factory | Build established: Mutant 9138 | -6/Factory | Repaired Gauss Cannon 9488 | -6/Factory | Repaired Carbon-fiber Leg 9716 | -6/Factory | Discovered new exit (range 4) 9722 | -6/Factory | Identified exit to Lower Caves 9765 | -6/Factory | Entered Lower Caves 10162 | -6/Lower Caves | Attacked by a faux Warlord 10311 | -6/Lower Caves | Attracted the attention of an 0b10 checkpoint 10469 | -6/Lower Caves | Discovered new exit (range 5) 10475 | -6/Lower Caves | Identified exit to Lower Caves 10477 | -6/Lower Caves | Entered another Lower Caves area 10478 | -6/Lower Caves | Encountered a Warlord checkpoint 10597 | -6/Lower Caves | Build established: Scavenger-Mutant 10694 | -6/Lower Caves | Discovered new exit (range 10) 10703 | -6/Lower Caves | Identified exit to Factory 10728 | -6/Lower Caves | Entered Factory 10728 | -5/Factory | Evolved 2 slots: Propulsion x1, Utility x1 11021 | -5/Factory | Discovered new exit (range 4) 11024 | -5/Factory | Identified exit to Factory 11122 | -5/Factory | Build established: Mutant 11153 | -5/Factory | Entered another Factory area 11153 | -4/Factory | Evolved 2 slots: Utility x1, Weapon x1 11311 | -4/Factory | Discovered new exit (range 11) 11418 | -4/Factory | Repaired Carbon-fiber Leg 11464 | -4/Factory | Identified exit to Research 11465 | -4/Factory | Entered Research 11465 | -3/Research | Evolved 2 slots: Propulsion x1, Utility x1 11660 | -3/Research | Build established: Scavenger-Tank 11723 | -3/Research | Spotted B-86 Titan 11772 | -3/Research | Destroyed B-86 Titan 11798 | -3/Research | Garrison activated, responded to threat 11837 | -3/Research | Lost 6 parts (3n3u) 12156 | -3/Research | Spotted B-86 Titan 12282 | -3/Research | System corruption reached 10% 12367 | -3/Research | Lost 18 parts (2p6n6u4w) 12399 | -3/Research | Found Prototype Processor 12399 | -3/Research | Identified Exp. Signal Interpreter 12401 | -3/Research | Core integrity fell below 50% 12402 | -3/Research | Found Exp. Signal Interpreter 12404 | -3/Research | Found Exp. Signal Interpreter 12480 | -3/Research | Discovered new exit (range 15) 12487 | -3/Research | Identified exit to Quarantine 12510 | -3/Research | Lost 3 parts (3n) 12540 | -3/Research | Discovered new exit (range 13) 12551 | -3/Research | Identified exit to Research 12552 | -3/Research | Entered another Research area 12552 | -2/Research | Evolved 2 slots: Utility x2 12582 | -2/Research | Lost 3 parts (2n1u) 12733 | -2/Research | Fabricated Cmb. Linear Gravjet? 12760 | -2/Research | Build established: Mutant 12870 | -2/Research | Discovered new exit (range 14) 12876 | -2/Research | Identified exit to Testing 12893 | -2/Research | Core integrity fell below 50% 12912 | -2/Research | Spotted B-90 Cyclops 12926 | -2/Research | Lost 3 parts (1n1u1w) 12958 | -2/Research | Core integrity fell below 20% 12960 | -2/Research | System corruption reached 10% 12966 | -2/Research | Destroyed by C-57 Dissector with Dual-blade Saw Last Messages --------------- 12957_ Slammed into H-81 Overseer. 12957_ Destabilizing: Core damaged (-58). 12957_ H-81 Overseer calls for reinforcements. 12957_ ALERT: Hostile activity reported, dispatching reinforcements to area. 12957_ Knocked back. 12957_ Slug penetrates Wall. 12958_ Slammed into C-57 Dissector. 12959_ Triggered Shock Trap. 12959_ The floor emits a surge of raw power. 12959_ System corrupted (+2). 12959_ Antigrav Array destroyed. 12960_ Acquired 13 matter. 12962_ Slug penetrates Wall. 12962_ Penetrated by Slug. 12962_ Cmb. Linear Gravjet destroyed. 12965_ Slug penetrates Y-72 Warden. [Achievement: Hunted] 12965_ Penetrated by Slug. 12965_ Slug penetrates Wall. Map ----- +----------------------------------------------------+ | ????# +????????# #????????# | | ????# ##????????# #????????# | | ????# #?????????# #????????#### ### | | ??### ########### #???????????# #?? | | ??# # ## ########????# #?? | | ??# # ## # ##???# ??? | | ??# >] # ## # #???# ??? | | ??# # ## # #????# ??? | | ??# ] # ## # #????# ??? | | ??## ## #? # "#????# ??? | | ???# ##+#########+### "#????????? | | ???# h # "#????????? | | ???# h h + T#????????? | | ???# # "#????????? | | ???######+# ####### "#????????? | | ???#! # # # "#????????? | | ???# # + #!! #????????? | | ???# # # #!! #?###+#### | | ???# # # ##"#"###? | | ???# ! # # # #? # | | ???# !! # u# # #? ?? | | ???######## h# # #? ??? | | ????####### Y####### #? #???? | | ????# #########g##### #???? | | ????# uc c H u h #???? | | ????# @c u ^ #???? | | ????# ######+##########"# #???? | | ????# #??? ???????### #???? | | ????# #??# #?####### #???? | | ????# #??# #?# #???? | | ????# #??# #?# ######### #???? | | ????# #??# ### ######### #???? | | ????# #??# # # ## #???? | | ??### ########### "" # ## #???? | | ??# T" + ## #???? | | ??# #### # ## #???? | | ??# #??# # / #???? | | ??#"" #??###############+#####?? | | ??#"" #????????????# #?? | | ??#"" ##????????????#! #?? | | ??#T #?????????????# #?? | | ??#"" #?????????????# "" #?? | | ??#"" #?????????????# """ #?? | | ??#"" #?????????????#[ S" #?? | | ??# #?????????????# #?? | | ?? #?????????????# ! #?? | | ?? #?????????????###########?? | | ?## #?????????????????????????? | | ??# ????????????????????????? | | ??# ???????????????????????? | +----------------------------------------------------+ Best States ------------- Heat Dissipation 84 Energy Generation 41 Energy Capacity 515 Matter Stores 350 Matter Capacity 350 Sight Range 16 Robot Scan Range 16 Terrain Scan Density 10 Armor Coverage 975 Resistance: KI 30 Point Defense Rating 160 Evasion (%) 62 Recoil Reduction 2 Kinecelleration 40 Defensive Hacking 20 Item Schematics ----------------- Imp. Light Cannon | -8/Materials | Scanalyzed Robot Schematics ------------------ None Fabricated ------------ Cmb. Linear Gravjet | x2 | -2/Research | Preloaded Alien Tech Used ----------------- None Achievements -------------- Armchair Analyst Dangerous Findings Dynamic Key Hunted Just What I Needed Party Time Remodeling Respectable Loadout Challenges ------------ None Game ------ Seed IntegratedAuthchipExtractor Manual? 0 Play Time 03:13:31 Cumulative 9.2 hours Start 2024.03.13 @ 21:15:39 End 2024.03.21 @ 00:04:34 Sessions 6 Manual Loads 0 Difficulty Rogue Special Mode None Game No. 2 Rogue 2 Adventurer 0 Explorer 0 Win Type - Total 0 Types 0/0/0/0/0/0/0/0/0 Lore% 3 Gallery% 14 Achievement% 13 Wizard Run 0 Options --------- Layout 2 ASCII 0 Keyboard 0 Movement Numpad Keybinds 0 Fullscreen 2 Font 32/Tamsyn Map View 50x44 Zoom Use 0% Tactical HUD 1 Map Filters NONE Filters NONE Steam 1 RUN: 90349c74-b856-418e-82f5-d51a4936a55d